bitfinex/quotes_BTCUSD_20241222
["timestamp","ask_amount","ask_price","bid_price","bid_amount"]
[1734842303359,0.4871902,96692.0,96691.0,0.0007321]
[1734842303904,0.4901902,96692.0,96691.0,0.0007321]
[1734842304314,0.87730037,96692.0,96691.0,0.0007321]
[1734842304511,0.88330037,96692.0,96691.0,0.0017321]
[1734842304689,0.87730037,96692.0,96691.0,0.0007321]
[1734842304986,0.87730037,96692.0,96691.0,0.0017321]
[1734842305192,0.88330037,96692.0,96691.0,0.0017321]
[1734842305827,0.88030037,96692.0,96691.0,0.0017321]
[1734842305999,0.88330037,96692.0,96691.0,0.0017321]
[1734842306526,0.88030037,96692.0,96691.0,0.0017321]
[1734842307206,0.88330037,96692.0,96691.0,0.0017321]
[1734842307441,0.86405452,96692.0,96691.0,0.0017321]
[1734842307611,0.88328005,96692.0,96691.0,0.0017321]
[1734842308023,0.69863654,96692.0,96691.0,0.0017321]
[1734842313771,0.35768725,96692.0,96691.0,0.0017321]
[1734842315907,0.49614176,96692.0,96691.0,0.0017321]
[1734842326992,0.35768725,96692.0,96691.0,0.0017321]
[1734842333832,0.206876,96677.0,96663.0,0.206904]
[1734842333978,0.206876,96677.0,96659.0,8.58e-05]
[1734842333979,0.1,96664.0,96659.0,8.58e-05]
[1734842334175,0.282706,96662.0,96659.0,8.58e-05]
[1734842334406,0.20691,96660.0,96659.0,8.58e-05]
[1734842334582,0.3082184,96660.0,96659.0,8.58e-05]
[1734842334985,0.32744393,96660.0,96659.0,8.58e-05]
[1734842335459,0.32744393,96660.0,96659.0,0.00021585]
[1734842335684,0.12053393,96660.0,96659.0,0.00021585]
[1734842336670,0.47017525,96660.0,96659.0,0.00021585]
[1734842337201,0.413824,96659.0,96651.0,0.0001]
[1734842337432,0.206917,96657.0,96654.0,0.00014233]
[1734842337603,0.1013084,96656.0,96654.0,0.00014233]
[1734842337805,0.01922553,96655.0,96654.0,0.00014233]
[1734842338018,0.12053393,96655.0,96654.0,0.00014233]
[1734842339431,0.12053393,96655.0,96654.0,0.07614233]
[1734842339877,0.21280386,96655.0,96654.0,0.07614233]
[1734842340570,0.21580386,96655.0,96654.0,0.07614233]
[1734842340926,0.12353393,96655.0,96654.0,0.07614233]
[1734842341128,0.12753393,96655.0,96654.0,0.07614233]
[1734842341332,0.12453393,96655.0,96654.0,0.07614233]
[1734842341754,0.12853393,96655.0,96654.0,0.07614233]
[1734842341986,0.12853393,96655.0,96654.0,0.00014233]
[1734842342182,0.12453393,96655.0,96654.0,0.00014233]
[1734842342387,0.12053393,96655.0,96654.0,0.00014233]
[1734842342711,0.12253393,96655.0,96654.0,0.00014233]
[1734842342961,0.12053393,96655.0,96654.0,0.00014233]
[1734842343520,0.02022553,96655.0,96654.0,0.00014233]
[1734842343761,0.02022553,96655.0,96654.0,0.07614233]
[1734842344008,0.02209444,96655.0,96654.0,0.07614233]
[1734842344233,0.002,96655.0,96654.0,0.07614233]
[1734842344461,0.003,96655.0,96654.0,0.07614233]
[1734842344890,0.002,96655.0,96654.0,0.07614233]
[1734842345479,0.003,96655.0,96654.0,0.07614233]
[1734842345677,0.13841439,96662.0,96654.0,0.07614233]
[1734842345678,0.09226993,96662.0,96654.0,0.07614233]
[1734842346129,0.09226993,96662.0,96656.0,0.206918]
[1734842346334,0.09226993,96662.0,96660.0,0.206908]
[1734842346540,0.09226993,96666.0,96656.0,0.413837]
[1734842346744,0.1013084,96665.0,96656.0,0.413837]
[1734842347086,0.001,96662.0,96656.0,0.206918]
[1734842347294,0.1013084,96661.0,96654.0,0.20706533]
[1734842348599,0.1013084,96661.0,96654.0,0.41398833]
[1734842349115,0.1023084,96661.0,96654.0,0.41398833]
[1734842349454,0.0001714,96659.0,96654.0,0.41398833]
[1734842350205,0.0001714,96659.0,96654.0,0.20706533]
[1734842350832,0.0011714,96659.0,96654.0,0.20706533]
[1734842351234,0.0001714,96659.0,96654.0,0.20706533]
[1734842351635,0.0011714,96659.0,96654.0,0.41398733]
[1734842353123,0.0011714,96659.0,96654.0,0.20706433]
[1734842353728,0.0011714,96659.0,96654.0,0.41398733]
[1734842355109,0.0011714,96659.0,96654.0,0.20706433]
[1734842356425,0.01923267,96658.0,96654.0,0.20706433]
[1734842356721,0.01923267,96657.0,96654.0,0.20706433]
[1734842357330,0.01923267,96656.0,96654.0,0.20706433]
[1734842357783,0.01923267,96655.0,96654.0,0.20706433]
[1734842358025,0.01923267,96655.0,96654.0,0.20806433]
[1734842359270,0.01923267,96655.0,96654.0,0.20706433]
[1734842359516,0.01923267,96655.0,96654.0,0.20806433]
[1734842359781,0.01908057,96655.0,96654.0,0.20706433]
[1734842359975,0.01908057,96655.0,96654.0,0.20906433]
[1734842360481,0.01908057,96655.0,96654.0,0.20706433]
[1734842360646,0.01908057,96655.0,96654.0,0.20906433]
[1734842360923,0.01908057,96655.0,96654.0,0.20706433]
[1734842361158,0.01908057,96655.0,96654.0,0.20906433]
[1734842365635,0.01908057,96655.0,96654.0,0.00214233]
[1734842366722,0.12038897,96655.0,96654.0,0.00214233]
[1734842366927,0.12138897,96655.0,96654.0,0.00014233]
[1734842367127,0.2136589,96655.0,96654.0,0.00014233]
[1734842367326,0.2196589,96655.0,96654.0,0.00014233]
[1734842367537,0.2186589,96655.0,96654.0,0.00014233]
[1734842367956,0.2206589,96655.0,96654.0,0.00014233]
[1734842368252,0.12838897,96655.0,96654.0,0.00014233]
[1734842368484,0.12238897,96655.0,96654.0,0.00014233]
[1734842368642,0.12538897,96655.0,96654.0,0.00014233]
[1734842373113,0.26385676,96655.0,96654.0,0.00014233]
[1734842373630,0.16254836,96655.0,96654.0,0.00014233]
[1734842374382,0.02408057,96655.0,96654.0,0.00014233]
[1734842375034,0.02108057,96655.0,96654.0,0.00014233]
[1734842375206,0.01908057,96655.0,96654.0,0.00014233]
[1734842375407,0.02091045,96655.0,96654.0,0.00014233]
[1734842375585,0.02191045,96655.0,96654.0,0.00014233]
[1734842375791,0.11427221,96655.0,96654.0,0.00014233]
[1734842376849,0.36289469,96655.0,96654.0,0.00014233]
[1734842377189,0.46420309,96655.0,96654.0,0.00014233]
[1734842378063,0.12321885,96655.0,96654.0,0.00014233]
[1734842379023,0.69489839,96655.0,96654.0,0.00014233]
[1734842380048,0.46420309,96655.0,96654.0,0.00014233]
[1734842380635,0.46420309,96655.0,96646.0,0.01448663]
[1734842381293,0.1043084,96655.0,96646.0,0.01448663]
[1734842381717,0.1013084,96655.0,96646.0,0.01448663]
[1734842381868,0.1033084,96655.0,96646.0,0.01448663]
[1734842382067,0.1043084,96655.0,96646.0,0.01448663]
[1734842382495,0.1386853,96647.0,96646.0,0.01448663]
[1734842383124,0.2399937,96647.0,96646.0,0.01448663]
[1734842383750,0.3159937,96647.0,96646.0,0.01448663]
[1734842383953,0.36222213,96647.0,96646.0,0.01448663]
[1734842384747,0.51829264,96647.0,96646.0,0.01648663]
[1734842385064,0.51829264,96647.0,96646.0,0.01657233]
[1734842385278,0.51829264,96647.0,96646.0,0.01457233]
[1734842385527,0.52329264,96647.0,96646.0,0.01457233]
[1734842385833,0.52029264,96647.0,96646.0,0.01457233]
[1734842385990,0.1773084,96647.0,96646.0,0.01457233]
[1734842386189,0.1803084,96647.0,96646.0,0.01457233]
[1734842386389,0.1823084,96647.0,96646.0,0.01457233]
[1734842386608,0.1063084,96647.0,96646.0,0.01457233]
[1734842386814,0.1043084,96647.0,96646.0,0.01457233]
[1734842387337,0.67643481,96647.0,96646.0,0.01457233]
[1734842387559,0.67343481,96647.0,96646.0,0.01457233]
[1734842387693,0.69569194,96647.0,96646.0,0.01457233]
[1734842388355,0.69869194,96647.0,96646.0,0.01457233]
[1734842388658,0.46654977,96647.0,96646.0,0.01457233]
[1734842388949,0.46754977,96647.0,96646.0,0.01457233]
[1734842389158,0.46454977,96647.0,96646.0,0.01457233]
[1734842389447,0.46654977,96647.0,96646.0,0.01457233]
[1734842389824,0.46854977,96647.0,96646.0,0.01457233]
[1734842390038,0.47054977,96647.0,96646.0,0.01457233]
[1734842390884,0.46354977,96647.0,96646.0,0.01457233]
[1734842391230,0.46654977,96647.0,96646.0,0.01457233]
[1734842391487,0.46154977,96647.0,96646.0,0.01457233]
[1734842391878,0.46654977,96647.0,96646.0,0.01457233]
[1734842392661,0.64836655,96647.0,96646.0,0.01457233]
[1734842392919,0.64936655,96647.0,96646.0,0.01457233]
[1734842393205,0.65136655,96647.0,96646.0,0.01457233]
[1734842393730,0.46654977,96647.0,96646.0,0.01457233]
[1734842394658,0.46354977,96647.0,96646.0,0.01457233]
[1734842394891,0.46154977,96647.0,96646.0,0.01457233]
[1734842395092,0.3547077,96647.0,96646.0,0.01457233]
[1734842395448,0.3567077,96647.0,96646.0,0.01457233]
[1734842395861,0.3517077,96647.0,96646.0,0.01457233]
[1734842396065,0.3537077,96647.0,96646.0,0.01457233]
[1734842396282,0.69869194,96647.0,96646.0,0.01457233]
[1734842396416,0.69269194,96647.0,96646.0,0.01457233]
[1734842396829,0.69486334,96647.0,96646.0,0.01457233]
[1734842397273,0.64852134,96647.0,96646.0,0.01457233]
[1734842397801,0.65152134,96647.0,96646.0,0.01457233]
[1734842398004,0.64952134,96647.0,96646.0,0.01457233]
[1734842398323,0.46672117,96647.0,96646.0,0.01457233]
[1734842398686,0.46172117,96647.0,96646.0,0.01457233]
[1734842398888,0.46472117,96647.0,96646.0,0.01457233]
[1734842399883,0.46372117,96647.0,96646.0,0.01457233]
[1734842401201,0.46672117,96647.0,96646.0,0.01457233]
[1734842401378,0.46472117,96647.0,96646.0,0.01457233]
[1734842401737,0.46672117,96647.0,96646.0,0.01457233]
[1734842401939,0.46372117,96647.0,96646.0,0.01457233]
[1734842402119,0.46472117,96647.0,96646.0,0.01457233]
[1734842402547,0.46372117,96647.0,96646.0,0.01457233]
[1734842402722,0.46572117,96647.0,96646.0,0.01457233]
[1734842402921,0.46372117,96647.0,96646.0,0.01457233]
[1734842403155,0.46572117,96647.0,96646.0,0.01457233]
[1734842403653,0.65052134,96647.0,96646.0,0.01457233]
[1734842404237,0.64852134,96647.0,96646.0,0.01457233]
[1734842404594,0.64652134,96647.0,96646.0,0.01457233]
[1734842404802,0.64852134,96647.0,96646.0,0.01457233]
[1734842405012,0.65052134,96647.0,96646.0,0.01457233]
[1734842405215,0.64852134,96647.0,96646.0,0.01457233]
[1734842405685,0.65052134,96647.0,96646.0,0.01457233]
[1734842405879,0.64852134,96647.0,96646.0,0.01457233]
[1734842406038,0.64952134,96647.0,96646.0,0.01457233]
[1734842406356,0.65152134,96647.0,96646.0,0.01457233]
[1734842407263,0.64852134,96647.0,96646.0,0.01457233]
[1734842408222,0.65052134,96647.0,96646.0,0.01457233]
[1734842408777,0.46572117,96647.0,96646.0,0.01457233]
[1734842409737,0.12473693,96647.0,96646.0,0.01457233]
[1734842410485,0.46572117,96647.0,96646.0,0.01457233]
[1734842422760,0.44646404,96647.0,96646.0,0.01457233]
[1734842423170,0.46572871,96647.0,96646.0,0.01457233]
[1734842424559,0.44646404,96647.0,96646.0,0.01457233]
[1734842424762,0.46572945,96647.0,96646.0,0.01457233]
[1734842425178,0.36442105,96647.0,96646.0,0.01457233]
[1734842425743,0.36442105,96647.0,96646.0,0.09237233]
[1734842426591,0.02143681,96647.0,96646.0,0.09237233]
[1734842426726,0.0021714,96647.0,96646.0,0.09540692]
[1734842427175,0.0001714,96647.0,96646.0,0.09540692]
[1734842427773,0.0001714,96647.0,96646.0,0.10552984]
[1734842429675,0.0001714,96647.0,96646.0,0.10449525]
[1734842429878,0.0001714,96647.0,96646.0,0.10552979]
[1734842434780,0.0001714,96647.0,96646.0,0.20683819]
[1734842435024,0.0001714,96647.0,96646.0,0.20580365]
[1734842435409,0.0001714,96647.0,96646.0,0.52700365]
[1734842437012,0.0011714,96647.0,96646.0,0.52900365]
[1734842437432,0.0001714,96655.0,96654.0,0.434523]
[1734842437670,0.0001714,96655.0,96654.0,0.7088314]
[1734842438060,0.0001714,96655.0,96654.0,0.74106156]
[1734842438473,0.00013991,96659.0,96658.0,0.1]
[1734842438641,0.00013991,96659.0,96658.0,0.35294266]
[1734842438839,0.00013991,96659.0,96658.0,0.7088234]
[1734842439578,0.00013991,96659.0,96658.0,0.72960624]
[1734842439988,0.00013991,96659.0,96658.0,0.7158234]
[1734842440329,0.00113991,96659.0,96658.0,0.72612877]
[1734842441014,0.00113991,96659.0,96658.0,0.72912877]
[1734842441474,9.1e-07,96659.0,96658.0,0.82912877]
[1734842443213,0.00017231,96659.0,96658.0,0.82912877]
[1734842443419,0.00017231,96659.0,96658.0,0.72912877]
[1734842443863,0.00017231,96659.0,96658.0,0.60612877]
[1734842444382,0.00017231,96659.0,96658.0,0.70612877]
[1734842448700,3.1e-07,96659.0,96658.0,0.82912877]
[1734842448874,0.081,96693.0,96691.0,0.206844]
[1734842449105,0.00021667,96692.0,96691.0,0.206844]
[1734842449489,0.00021667,96692.0,96688.0,0.206848]
[1734842449808,0.081,96690.0,96679.0,0.20687]
[1734842450027,0.081,96690.0,96678.0,0.20687]
[1734842450028,0.1013084,96689.0,96683.0,0.206859]
[1734842450238,0.081,96690.0,96685.0,0.206856]
[1734842450639,0.081,96690.0,96685.0,0.413713]
[1734842451945,0.085,96690.0,96685.0,0.413713]
[1734842452354,0.081,96690.0,96685.0,0.413713]
[1734842452856,0.085,96690.0,96685.0,0.413713]
[1734842453212,0.083,96690.0,96685.0,0.413713]
[1734842453918,0.083,96690.0,96685.0,0.206856]
[1734842454105,0.081,96690.0,96685.0,0.206856]
[1734842454273,0.082,96690.0,96685.0,0.206856]
[1734842454768,0.081,96690.0,96685.0,0.206856]
[1734842454990,0.082,96690.0,96685.0,0.206856]
[1734842455396,0.0461,96689.0,96685.0,0.206856]
[1734842456841,0.0471,96689.0,96685.0,0.206856]
[1734842458176,0.0481,96689.0,96685.0,0.206856]
[1734842458411,0.0823,96688.0,96677.0,0.206873]
[1734842459584,0.0823,96686.0,96671.0,0.206885]
[1734842459814,0.0823,96686.0,96669.0,0.206891]
[1734842459815,0.0461,96680.0,96669.0,0.206891]
[1734842460016,0.0823,96678.0,96669.0,0.206891]
[1734842460378,0.1013084,96677.0,96669.0,0.206891]
[1734842462564,0.1043084,96677.0,96664.0,0.206902]
[1734842462739,0.206876,96676.0,96658.0,0.2069997]
[1734842462943,0.1013084,96675.0,96658.0,0.2069997]
[1734842463194,0.0823,96674.0,96659.0,0.206912]
[1734842463343,0.1013084,96673.0,96659.0,0.206912]
[1734842463555,0.0767,96672.0,96659.0,0.206912]
[1734842463757,0.1780084,96672.0,96659.0,0.206912]
[1734842463957,0.1780084,96672.0,96664.0,0.206902]
[1734842464182,0.0767,96670.0,96659.0,0.206912]
[1734842465933,0.0797,96670.0,96659.0,0.206912]
[1734842466592,0.23470331,96670.0,96658.0,8.57e-05]
[1734842466975,0.23770331,96670.0,96658.0,8.57e-05]
[1734842467524,0.23770331,96670.0,96659.0,8.57e-05]
[1734842467723,0.206891,96669.0,96659.0,8.57e-05]
[1734842468618,0.0767,96667.0,96659.0,8.57e-05]
[1734842468752,0.0767,96665.0,96659.0,8.57e-05]
[1734842468971,0.206906,96662.0,96659.0,8.57e-05]
[1734842469183,0.1013084,96661.0,96659.0,8.57e-05]
[1734842469786,0.20691,96660.0,96659.0,8.57e-05]
[1734842470026,0.3082184,96660.0,96659.0,8.57e-05]
[1734842470281,0.30827282,96660.0,96659.0,8.57e-05]
[1734842471181,0.10136282,96660.0,96659.0,8.57e-05]
[1734842471383,0.10136282,96660.0,96659.0,0.0010857]
[1734842471798,0.10136282,96660.0,96659.0,8.57e-05]
[1734842472069,0.10136282,96660.0,96659.0,0.0020857]
[1734842472572,0.10136282,96660.0,96659.0,0.0030857]
[1734842472778,0.10136282,96660.0,96659.0,0.0010857]
[1734842473120,0.10536282,96660.0,96659.0,0.0010857]
[1734842473347,0.00405442,96660.0,96659.0,0.0010857]
[1734842473553,0.00405442,96660.0,96659.0,0.00212021]
[1734842473795,0.00405442,96660.0,96659.0,0.00212013]
[1734842473998,0.00405442,96660.0,96659.0,0.07882011]
[1734842474403,0.00205442,96660.0,96659.0,0.07882011]
[1734842474637,0.00205442,96660.0,96659.0,0.07982011]
[1734842474841,5.442e-05,96660.0,96659.0,0.07982011]
[1734842475101,5.442e-05,96660.0,96659.0,0.07882011]
[1734842475319,5.442e-05,96660.0,96659.0,0.08182011]
[1734842475529,5.442e-05,96660.0,96659.0,0.09001666]
[1734842475719,5.442e-05,96660.0,96659.0,0.08901666]
[1734842475924,5.442e-05,96660.0,96659.0,0.09301666]
[1734842476165,5.442e-05,96660.0,96659.0,0.09001666]
[1734842476539,5.442e-05,96660.0,96659.0,0.09601666]
[1734842477336,5.442e-05,96660.0,96659.0,0.09501666]
[1734842477725,5.442e-05,96660.0,96659.0,0.09201666]
[1734842478127,0.00105442,96660.0,96659.0,0.09801666]
[1734842479553,0.00105442,96660.0,96659.0,0.02031666]
[1734842479775,0.00122582,96660.0,96659.0,0.02031666]
[1734842480779,0.00122582,96660.0,96659.0,0.01731666]
[1734842481013,0.00022582,96660.0,96659.0,0.01431666]
[1734842481362,0.00122582,96660.0,96659.0,0.02031666]
[1734842487240,0.00022582,96660.0,96659.0,0.01431666]
[1734842487429,0.00122582,96660.0,96659.0,0.02031666]
[1734842487626,0.00122582,96660.0,96659.0,0.01131666]
[1734842487931,0.00222582,96660.0,96659.0,0.01731666]
[1734842488150,0.00222582,96660.0,96659.0,0.01628225]
[1734842488348,0.17963422,96660.0,96659.0,0.0090857]
[1734842489001,0.17963422,96660.0,96659.0,0.0060857]
[1734842489202,0.17963422,96660.0,96659.0,0.0090857]
[1734842490045,0.22303422,96660.0,96659.0,0.0030857]
[1734842490213,0.22603422,96660.0,96659.0,0.0030857]
[1734842490443,0.24526866,96660.0,96659.0,0.0030857]
[1734842490898,0.24926866,96660.0,96659.0,0.0030857]
[1734842491103,0.24226866,96660.0,96659.0,8.57e-05]
[1734842491515,0.24926866,96660.0,96659.0,8.57e-05]
[1734842491913,0.24726866,96660.0,96659.0,8.57e-05]
[1734842492313,0.25026866,96660.0,96659.0,8.57e-05]
[1734842492737,0.34251108,96660.0,96659.0,8.57e-05]
[1734842493181,0.25026866,96660.0,96659.0,8.57e-05]
[1734842495839,0.34246366,96660.0,96659.0,8.57e-05]
[1734842498435,0.38874972,96660.0,96659.0,8.57e-05]
[1734842498638,0.36951528,96660.0,96641.0,0.206951]
[1734842498866,0.206926,96653.0,96641.0,0.206951]
[1734842499133,0.1013084,96652.0,96641.0,0.206951]
[1734842499345,0.1013084,96652.0,96636.0,0.21720444]
[1734842499346,0.20693,96651.0,96636.0,0.21720444]
[1734842499516,0.0772,96649.0,96636.0,0.21720444]
[1734842499722,0.3082444,96648.0,96636.0,0.01024444]
[1734842500321,0.01920345,96647.0,96637.0,0.206959]
[1734842500524,0.12051185,96647.0,96632.0,0.206968]
[1734842500774,0.1013084,96647.0,96634.0,0.0102892]
[1734842501652,0.1013084,96647.0,96631.0,0.0001]
[1734842501814,0.1013084,96647.0,96633.0,0.01044073]
[1734842502010,0.1013084,96647.0,96634.0,0.206964]
[1734842502855,0.1013084,96647.0,96633.0,0.01044073]
[1734842503212,0.1013084,96647.0,96646.0,0.01557233]
[1734842503412,0.1013084,96647.0,96646.0,0.01457233]
[1734842503819,0.1113084,96647.0,96646.0,0.01557233]
[1734842504255,0.1073084,96647.0,96646.0,0.01557233]
[1734842504462,0.1103084,96647.0,96646.0,0.01557233]
[1734842511819,0.12951185,96647.0,96646.0,0.01557233]
[1734842519866,0.1103084,96647.0,96646.0,0.01557233]
[1734842521196,0.41388,96646.0,96631.0,0.0001]
[1734842521407,0.05673435,96641.0,96631.0,0.0001]
[1734842521600,0.206963,96636.0,96631.0,0.0001]
[1734842522003,0.01924938,96635.0,96631.0,0.0001]
[1734842522399,0.01924938,96634.0,96631.0,0.0001]
[1734842523020,0.01924938,96633.0,96631.0,0.0011]
[1734842523397,0.01924938,96633.0,96631.0,0.0001]
[1734842524284,0.02224938,96633.0,96631.0,0.0001]
[1734842524685,0.01924938,96632.0,96631.0,0.0001]
[1734842526609,0.01924938,96632.0,96631.0,0.0001857]
[1734842526813,0.02224938,96632.0,96631.0,0.0001857]
[1734842527082,0.02324938,96632.0,96631.0,0.0001857]
[1734842529110,0.01924938,96632.0,96631.0,0.0001857]
[1734842529315,0.02124938,96632.0,96631.0,0.0001857]
[1734842529864,0.001,96632.0,96631.0,0.08142052]
[1734842530091,0.004,96632.0,96631.0,0.12802052]
[1734842530292,0.09216449,96645.0,96631.0,0.12802052]
[1734842530507,0.09216449,96645.0,96642.0,0.206949]
[1734842530623,0.09216449,96645.0,96638.0,0.206957]
[1734842531865,0.0001714,96646.0,96638.0,0.206957]
[1734842532465,0.004,96645.0,96638.0,0.206957]
[1734842533000,0.008,96645.0,96638.0,0.207957]
[1734842533202,0.008,96645.0,96638.0,0.206957]
[1734842533370,0.0001714,96646.0,96638.0,0.206957]
[1734842533570,0.0091714,96646.0,96638.0,0.207957]
[1734842533946,0.0001714,96646.0,96642.0,0.206947]
[1734842534153,0.09216449,96644.0,96642.0,0.206947]
[1734842535389,0.13824674,96644.0,96642.0,0.413896]
[1734842536250,0.14324674,96644.0,96642.0,0.413896]
[1734842536446,0.005,96644.0,96642.0,0.413896]
[1734842536962,0.007,96644.0,96642.0,0.413896]
[1734842537132,0.002,96644.0,96642.0,0.413896]
[1734842537329,0.005,96644.0,96642.0,0.413896]
[1734842537559,0.09439289,96644.0,96642.0,0.413896]
[1734842537877,0.09939289,96644.0,96642.0,0.413896]
[1734842538528,0.007,96644.0,96642.0,0.413896]
[1734842538836,0.005,96644.0,96642.0,0.413896]
[1734842539134,0.007,96644.0,96642.0,0.42437738]
[1734842539686,0.002,96644.0,96642.0,0.42437738]
[1734842540194,0.09239289,96645.0,96642.0,0.42437738]
[1734842540396,0.004,96644.0,96642.0,0.42437738]
[1734842541618,0.09239289,96645.0,96642.0,0.42437738]
[1734842542770,0.09256429,96646.0,96642.0,0.42437738]
[1734842543004,0.001,96644.0,96642.0,0.42437738]
[1734842543213,0.09256429,96646.0,96642.0,0.42437738]
[1734842544019,0.0001714,96646.0,96642.0,0.42437738]
[1734842544599,0.0001714,96646.0,96642.0,0.206947]
[1734842544900,0.1013084,96645.0,96634.0,0.206966]
[1734842546094,0.1033084,96645.0,96634.0,0.206966]
[1734842546496,0.09239289,96639.0,96634.0,0.206966]
[1734842546874,0.1013084,96638.0,96634.0,0.207966]
[1734842547211,0.1013084,96638.0,96634.0,0.206966]
[1734842547570,0.09239289,96636.0,96634.0,0.206966]
[1734842548307,0.1013084,96635.0,96631.0,0.0001857]
[1734842548711,0.1822084,96635.0,96631.0,0.0001857]
[1734842550123,0.09239289,96636.0,96631.0,0.4141287]
[1734842550282,0.18464141,96641.0,96632.0,0.20697]
[1734842550283,0.23080176,96633.0,96632.0,0.20697]
[1734842551470,0.09234879,96634.0,96632.0,0.20697]
[1734842552975,0.09234879,96634.0,96631.0,0.0001857]
[1734842553156,0.09234879,96634.0,96631.0,0.2071577]
[1734842553359,0.09234879,96635.0,96631.0,0.2071577]
[1734842553556,0.19365719,96635.0,96631.0,0.2071577]
[1734842553859,0.19365719,96635.0,96631.0,0.0001857]
[1734842554059,0.003,96634.0,96631.0,0.0001857]
[1734842554272,0.19365719,96635.0,96631.0,0.0001857]
[1734842554478,0.01923402,96633.0,96631.0,0.0001857]
[1734842554893,0.01923402,96632.0,96631.0,0.0001857]
[1734842555538,0.11158281,96632.0,96631.0,0.0001857]
[1734842555946,0.09234879,96632.0,96631.0,0.0001857]
[1734842556443,0.001,96632.0,96631.0,0.0001857]
[1734842556850,0.003,96632.0,96631.0,0.0001857]
[1734842557385,0.02224039,96632.0,96631.0,0.0001857]
[1734842557728,0.02124039,96632.0,96631.0,0.0001857]
[1734842558137,0.02224039,96632.0,96631.0,0.0001857]
[1734842558579,0.02124039,96632.0,96631.0,0.0001857]
[1734842558965,0.02224039,96632.0,96631.0,0.0001857]
[1734842559370,0.11358918,96632.0,96631.0,0.0001857]
[1734842559573,0.11158918,96632.0,96631.0,0.0001857]
[1734842559748,0.11258918,96632.0,96631.0,0.0001857]
[1734842559955,0.11458918,96632.0,96631.0,0.0001857]
[1734842560163,0.02224039,96632.0,96631.0,0.0001857]
[1734842561141,0.003,96632.0,96631.0,0.0001857]
[1734842561613,0.002,96632.0,96631.0,0.0001857]
[1734842562046,0.02224124,96632.0,96631.0,0.0001857]
[1734842562226,0.02024124,96632.0,96631.0,0.0001857]
[1734842562577,0.02224124,96632.0,96631.0,0.0001857]
[1734842563830,0.003,96632.0,96631.0,0.0001857]
[1734842564637,0.002,96632.0,96631.0,0.0001857]
[1734842565050,0.003,96632.0,96631.0,0.0001857]
[1734842565452,0.19365719,96635.0,96631.0,0.0001857]
[1734842565686,0.19365719,96635.0,96632.0,0.20697]
[1734842565889,0.09234879,96634.0,96632.0,0.20697]
[1734842567973,0.09234879,96634.0,96632.0,0.28217]
[1734842568327,0.09334879,96634.0,96632.0,0.28217]
[1734842568554,0.001,96634.0,96632.0,0.28217]
[1734842568756,0.001,96634.0,96633.0,0.0461]
[1734842568953,0.004,96634.0,96633.0,0.04713474]
[1734842569940,0.001,96634.0,96633.0,0.04713474]
[1734842570344,0.002,96634.0,96633.0,0.04713474]
[1734842570475,0.001,96634.0,96633.0,0.04713474]
[1734842570682,0.09234879,96651.0,96645.0,0.206942]
[1734842570904,0.09234879,96655.0,96645.0,0.282142]
[1734842571106,0.09234879,96655.0,96645.0,0.206942]
[1734842571314,0.01924303,96654.0,96645.0,0.206942]
[1734842571703,0.01924303,96653.0,96645.0,0.206942]
[1734842572114,0.01924303,96652.0,96645.0,0.206942]
[1734842572692,0.0786,96647.0,96645.0,0.206942]
[1734842573103,0.01941443,96646.0,96645.0,0.206942]
[1734842573577,0.01941443,96646.0,96645.0,0.208942]
[1734842573793,0.01941443,96646.0,96645.0,0.207942]
[1734842574467,0.01941443,96646.0,96645.0,0.206942]
[1734842576592,0.02041443,96646.0,96645.0,0.206942]
[1734842576951,0.01941443,96646.0,96645.0,0.206942]
[1734842577137,0.01941443,96646.0,96639.0,0.206954]
[1734842577138,0.12172283,96646.0,96639.0,0.206954]
[1734842577263,0.1013084,96645.0,96639.0,0.206954]
[1734842577695,0.01924303,96644.0,96639.0,0.206954]
[1734842577889,0.1013084,96643.0,96639.0,0.206954]
[1734842579147,0.19465206,96643.0,96639.0,0.206954]
[1734842579636,0.19465206,96643.0,96632.0,0.206969]
[1734842579833,0.19765206,96643.0,96636.0,0.20696]
[1734842580237,0.19765206,96643.0,96631.0,0.01067521]
[1734842580238,0.19765206,96643.0,96633.0,0.206968]
[1734842580655,0.19365206,96643.0,96633.0,0.206968]
[1734842580890,0.19765206,96643.0,96633.0,0.206968]
[1734842581228,0.19665206,96643.0,96633.0,0.206968]
[1734842581583,0.19765206,96643.0,96633.0,0.206968]
[1734842581713,0.09234366,96639.0,96633.0,0.206968]
[1734842582974,0.09234366,96638.0,96633.0,0.206968]
[1734842584083,0.09234366,96639.0,96633.0,0.206968]
[1734842585772,0.09334366,96639.0,96633.0,0.206968]
[1734842585994,0.09334366,96639.0,96633.0,0.2070537]
[1734842586205,0.09234366,96639.0,96633.0,0.2070537]
[1734842586423,0.09434366,96639.0,96633.0,0.2070537]
[1734842586614,0.09234366,96639.0,96633.0,0.2070537]
[1734842587162,0.09434366,96639.0,96633.0,0.2070537]
[1734842587420,0.09434366,96639.0,96633.0,8.57e-05]
[1734842587653,0.09234366,96638.0,96633.0,8.57e-05]
[1734842587815,0.0782,96637.0,96633.0,8.57e-05]
[1734842588311,0.1013084,96636.0,96633.0,8.57e-05]
[1734842588740,0.01923514,96635.0,96633.0,8.57e-05]
[1734842589024,0.12054354,96635.0,96633.0,8.57e-05]
[1734842589201,0.01923514,96634.0,96633.0,8.57e-05]
[1734842591603,0.32750954,96634.0,96633.0,8.57e-05]
[1734842591807,0.37590954,96634.0,96633.0,8.57e-05]
[1734842592740,0.37890954,96634.0,96633.0,8.57e-05]
[1734842592914,0.37590954,96634.0,96633.0,8.57e-05]
[1734842593360,0.37990954,96634.0,96633.0,8.57e-05]
[1734842593925,0.38190954,96634.0,96633.0,8.57e-05]
[1734842594731,0.72284222,96634.0,96633.0,8.57e-05]
[1734842595512,0.51587622,96634.0,96633.0,8.57e-05]
[1734842595629,0.90753981,96634.0,96633.0,8.57e-05]
[1734842597670,0.52042881,96634.0,96633.0,8.57e-05]
[1734842598737,0.38190954,96634.0,96633.0,8.57e-05]
[1734842601267,0.3388,96618.0,96617.0,8.56e-05]
[1734842601484,0.5901084,96618.0,96617.0,8.56e-05]
[1734842601695,0.80934354,96618.0,96617.0,8.56e-05]
[1734842601901,0.1,96615.0,96600.0,0.01]
[1734842602108,0.45304354,96615.0,96600.0,0.01]
[1734842602283,0.47604354,96615.0,96600.0,0.01]
[1734842602517,0.52294354,96615.0,96600.0,0.01]
[1734842602718,0.52294354,96615.0,96614.0,0.00031938]
[1734842602931,0.53310682,96615.0,96614.0,0.00031938]
[1734842603133,0.53910682,96615.0,96614.0,0.00131938]
[1734842603338,0.53310682,96615.0,96614.0,0.00031938]
[1734842603547,0.87388387,96615.0,96614.0,0.00031938]
[1734842603667,0.87988387,96615.0,96614.0,0.0011115]
[1734842604472,0.88288387,96615.0,96614.0,0.0011115]